bitfinex/quotes_BTCUSD_20241222
["timestamp","ask_amount","ask_price","bid_price","bid_amount"]
[1734827213637,0.00128643,97175.0,97168.0,0.1013084]
[1734827213811,0.00128643,97174.0,97168.0,0.1013084]
[1734827214772,0.205818,97173.0,97168.0,0.1013084]
[1734827214975,0.00128643,97172.0,97168.0,0.1013084]
[1734827215624,0.001,97174.0,97168.0,0.1013084]
[1734827215834,0.00228643,97174.0,97169.0,0.205826]
[1734827216047,0.00228643,97174.0,97169.0,0.3071344]
[1734827216234,0.002,97172.0,97169.0,0.3071344]
[1734827216853,0.00228643,97174.0,97169.0,0.3071344]
[1734827216854,0.00128643,97174.0,97169.0,0.3071344]
[1734827217055,0.001,97172.0,97169.0,0.3071344]
[1734827217259,0.003,97172.0,97169.0,0.3071344]
[1734827217462,0.003,97172.0,97169.0,0.1013084]
[1734827217669,0.002,97172.0,97169.0,0.1013084]
[1734827217878,0.003,97172.0,97169.0,0.1013084]
[1734827218461,0.001,97172.0,97169.0,0.1013084]
[1734827218666,0.003,97172.0,97169.0,0.1013084]
[1734827218996,0.00228642,97172.0,97169.0,0.1013084]
[1734827219338,0.10022779,97172.0,97169.0,0.1023084]
[1734827219554,0.09422779,97172.0,97169.0,0.1013084]
[1734827219754,0.09322779,97172.0,97169.0,0.1013084]
[1734827220100,0.09822779,97172.0,97169.0,0.1013084]
[1734827220324,0.09522779,97172.0,97169.0,0.1013084]
[1734827220527,0.00328642,97172.0,97169.0,0.1013084]
[1734827220931,0.00128642,97172.0,97169.0,0.1013084]
[1734827221630,0.09322779,97172.0,97169.0,0.1013084]
[1734827221838,0.09394137,97172.0,97171.0,0.0771]
[1734827222041,0.09394137,97172.0,97171.0,0.1784084]
[1734827222458,0.09394137,97172.0,97167.0,8.57e-05]
[1734827222663,0.00128645,97171.0,97167.0,0.1013941]
[1734827223085,0.00128645,97175.0,97167.0,0.3072231]
[1734827223285,0.002,97172.0,97167.0,0.3072231]
[1734827223494,0.002,97172.0,97167.0,0.1013941]
[1734827223696,0.00128645,97175.0,97167.0,0.1013941]
[1734827223914,0.00128645,97175.0,97167.0,0.3072231]
[1734827224114,0.00128645,97176.0,97167.0,0.3072231]
[1734827224600,0.20709945,97176.0,97167.0,0.1013941]
[1734827225021,0.001,97171.0,97167.0,0.1013941]
[1734827225465,0.20709945,97176.0,97167.0,0.1013941]
[1734827225668,0.00528645,97176.0,97167.0,0.3072241]
[1734827226079,0.00128645,97176.0,97167.0,0.3072241]
[1734827226295,0.001,97171.0,97167.0,0.3072241]
[1734827226638,0.00128645,97173.0,97167.0,0.3072241]
[1734827227020,0.00128645,97173.0,97167.0,0.1013941]
[1734827227229,0.20710545,97173.0,97167.0,0.1013941]
[1734827227587,0.00128645,97173.0,97167.0,8.57e-05]
[1734827227789,0.205825,97170.0,97167.0,8.57e-05]
[1734827228030,0.205829,97168.0,97167.0,8.57e-05]
[1734827228206,0.20582,97172.0,97167.0,8.57e-05]
[1734827228363,0.38970675,97170.0,97167.0,8.57e-05]
[1734827228575,0.00128655,97169.0,97167.0,8.57e-05]
[1734827229202,0.001,97168.0,97167.0,8.57e-05]
[1734827229422,0.00128655,97168.0,97167.0,8.57e-05]
[1734827229630,0.34283916,97168.0,97167.0,8.57e-05]
[1734827229823,0.34155261,97168.0,97167.0,8.57e-05]
[1734827230867,0.34255261,97168.0,97167.0,8.57e-05]
[1734827231412,0.34455261,97168.0,97167.0,8.57e-05]
[1734827232011,0.52970013,97168.0,97167.0,8.57e-05]
[1734827233446,0.52970013,97168.0,97167.0,0.1013941]
[1734827234224,0.52970013,97168.0,97167.0,0.1840941]
[1734827234628,0.52670013,97168.0,97167.0,0.1840941]
[1734827235048,0.52770013,97168.0,97167.0,0.1840941]
[1734827235708,0.001,97168.0,97167.0,0.1840941]
[1734827235956,0.001,97168.0,97167.0,0.18512311]
[1734827236153,0.001,97168.0,97167.0,0.35812311]
[1734827236361,0.001,97168.0,97167.0,0.3570941]
[1734827236565,0.001,97168.0,97167.0,0.90329262]
[1734827236763,0.09255433,97177.0,97176.0,0.355812]
[1734827237108,0.09255433,97177.0,97176.0,0.5628204]
[1734827237284,0.0001714,97179.0,97177.0,0.173]
[1734827237496,0.0001714,97179.0,97178.0,0.27533722]
[1734827237692,0.0001714,97179.0,97178.0,0.2743084]
[1734827238635,0.0001714,97179.0,97178.0,0.4851154]
[1734827238840,0.0001714,97179.0,97178.0,0.4801154]
[1734827239631,0.0011714,97179.0,97178.0,0.4631154]
[1734827239984,0.0011714,97179.0,97178.0,0.4651154]
[1734827240624,0.0011714,97179.0,97178.0,1.01131392]
[1734827241479,0.0011714,97179.0,97178.0,1.02181821]
[1734827242924,0.0011714,97179.0,97178.0,1.07041821]
[1734827243165,0.0011714,97179.0,97178.0,1.15311821]
[1734827244400,0.0011714,97179.0,97178.0,1.17611821]
[1734827249326,0.0011714,97179.0,97178.0,1.15311821]
[1734827250191,0.0011714,97179.0,97178.0,1.10451821]
[1734827252131,0.0011714,97179.0,97178.0,0.87181821]
[1734827252553,0.0011714,97179.0,97178.0,0.32561969]
[1734827253418,0.0001714,97179.0,97178.0,0.31961969]
[1734827254126,0.0001714,97179.0,97178.0,0.31761969]
[1734827254385,0.0001714,97179.0,97178.0,0.31961969]
[1734827254840,0.0001714,97179.0,97178.0,0.32161969]
[1734827255060,0.0001714,97179.0,97178.0,0.31861969]
[1734827255302,0.0001714,97179.0,97178.0,0.32361969]
[1734827255539,0.0001714,97179.0,97178.0,0.32261969]
[1734827255995,0.0001714,97179.0,97178.0,0.32461969]
[1734827256211,0.0001714,97179.0,97178.0,0.31961969]
[1734827256421,0.0011714,97179.0,97178.0,0.32561969]
[1734827256628,0.0011714,97179.0,97178.0,0.31961969]
[1734827256781,0.0001714,97179.0,97178.0,0.31961969]
[1734827256998,0.0001714,97179.0,97178.0,0.31761969]
[1734827257405,0.0001714,97179.0,97178.0,0.32061969]
[1734827257899,0.0001714,97179.0,97178.0,0.31761969]
[1734827258105,0.0011714,97179.0,97178.0,0.32561969]
[1734827258310,0.0011714,97179.0,97178.0,0.31961969]
[1734827258512,0.0011714,97179.0,97178.0,0.32261969]
[1734827259081,0.0011714,97179.0,97178.0,0.32461969]
[1734827261501,0.0011714,97179.0,97178.0,0.30961969]
[1734827262606,0.0011714,97179.0,97178.0,0.2991154]
[1734827262810,0.0011714,97179.0,97178.0,0.0933084]
[1734827263238,0.0011714,97179.0,97178.0,0.0913084]
[1734827263609,0.0011714,97179.0,97178.0,0.0923084]
[1734827264042,0.0011714,97179.0,97178.0,0.1717084]
[1734827264247,0.0011714,97179.0,97178.0,0.17273732]
[1734827264659,0.0001714,97179.0,97178.0,0.16773732]
[1734827265080,0.0001714,97179.0,97178.0,0.17073732]
[1734827265284,0.0001714,97179.0,97178.0,0.16773732]
[1734827265493,0.0001714,97179.0,97178.0,0.17073732]
[1734827267370,0.0001714,97179.0,97178.0,0.17273732]
[1734827267567,0.0001714,97179.0,97178.0,0.18295448]
[1734827267803,0.0001714,97179.0,97178.0,0.18304018]
[1734827270284,0.0001714,97179.0,97178.0,0.10161126]
[1734827273331,0.0001714,97179.0,97178.0,0.15154021]
[1734827273913,0.0001714,97179.0,97178.0,0.23054021]
[1734827274130,0.0001714,97179.0,97178.0,0.40251126]
[1734827274492,0.0009902,97203.0,97202.0,0.205757]
[1734827274709,0.0009902,97203.0,97202.0,0.3860654]
[1734827274931,0.09255433,97213.0,97212.0,0.205735]
[1734827275138,0.09255433,97213.0,97212.0,0.3070434]
[1734827275354,0.0009875,97222.0,97212.0,0.1013084]
[1734827275557,0.0009875,97222.0,97221.0,0.205716]
[1734827275762,0.0009875,97222.0,97221.0,0.3070244]
[1734827275763,0.001532,97222.0,97221.0,0.3070244]
[1734827275964,0.0005445,97222.0,97221.0,0.3070244]
[1734827276175,0.0005445,97222.0,97221.0,0.1013084]
[1734827277316,0.0005445,97222.0,97213.0,0.205733]
[1734827277528,0.0005445,97222.0,97214.0,0.1013084]
[1734827278184,0.2152605,97222.0,97221.0,0.001]
[1734827278700,0.0005445,97222.0,97209.0,0.20574]
[1734827278848,0.00128588,97221.0,97210.0,0.1013084]
[1734827279058,0.20700288,97221.0,97210.0,0.1013084]
[1734827280221,0.205731,97215.0,97210.0,0.1013084]
[1734827280468,0.00128588,97214.0,97210.0,0.1013084]
[1734827280670,0.00128588,97220.0,97210.0,0.1013084]
[1734827281662,0.00128588,97219.0,97210.0,0.1023084]
[1734827281838,0.205723,97218.0,97210.0,0.1013084]
[1734827282048,0.00128588,97217.0,97210.0,0.1023084]
[1734827282599,0.00128588,97217.0,97210.0,0.1013084]
[1734827282780,0.00128588,97217.0,97210.0,0.1023084]
[1734827283012,0.00128588,97216.0,97210.0,0.1013084]
[1734827284594,0.00328588,97216.0,97210.0,0.1013084]
[1734827284804,0.00828588,97216.0,97210.0,0.1013084]
[1734827286001,0.21401488,97216.0,97210.0,0.1013084]
[1734827286372,0.41974388,97216.0,97210.0,0.1013084]
[1734827286582,0.21401488,97216.0,97210.0,0.1013084]
[1734827287209,0.21401488,97216.0,97193.0,0.205775]
[1734827287210,0.287429,97215.0,97193.0,0.205775]
[1734827287415,0.00128599,97214.0,97197.0,0.1013084]
[1734827288011,0.002,97216.0,97213.0,0.205733]
[1734827288228,0.0009859,97217.0,97215.0,0.205729]
[1734827288433,0.0006302,97222.0,97218.0,0.079]
[1734827288434,0.09318453,97222.0,97218.0,0.079]
[1734827288633,0.09318453,97222.0,97219.0,0.3070294]
[1734827288978,0.09318453,97222.0,97221.0,0.1013084]
[1734827289108,0.09318453,97222.0,97221.0,0.3070244]
[1734827289998,0.0006302,97222.0,97221.0,0.3070244]
[1734827291311,0.0006302,97222.0,97221.0,0.3110244]
[1734827291597,0.0006302,97222.0,97221.0,0.3090244]
[1734827291920,0.0006302,97222.0,97221.0,0.1113084]
[1734827291921,0.0016302,97222.0,97221.0,0.1113084]
[1734827292561,0.0016302,97222.0,97221.0,0.01]
[1734827293561,0.0016302,97222.0,97221.0,0.007]
[1734827293707,0.00291602,97222.0,97221.0,0.007]
[1734827294575,0.00391602,97222.0,97221.0,0.007]
[1734827294811,0.00291602,97222.0,97194.0,0.205773]
[1734827295013,0.205744,97208.0,97195.0,0.10233712]
[1734827295153,0.00128593,97207.0,97195.0,0.1013084]
[1734827296823,0.205748,97206.0,97195.0,0.1013084]
[1734827297017,0.20703701,97205.0,97195.0,0.1013084]
[1734827298398,0.20703701,97205.0,97195.0,0.1033084]
[1734827298591,0.00128601,97205.0,97195.0,0.1033084]
[1734827298794,0.205763,97199.0,97195.0,0.1033084]
[1734827299013,0.205767,97197.0,97195.0,0.1033084]
[1734827299239,0.00128613,97196.0,97195.0,0.002]
[1734827299656,0.00128613,97196.0,97195.0,0.001]
[1734827300083,0.205767,97197.0,97195.0,0.001]
[1734827300235,0.00128617,97196.0,97195.0,0.001]
[1734827300441,0.00128617,97196.0,97179.0,0.0001714]
[1734827300647,0.205757,97202.0,97195.0,0.001]
[1734827300873,0.205769,97196.0,97195.0,0.001]
[1734827301072,0.001,97199.0,97181.0,0.205801]
[1734827301273,0.00128622,97198.0,97182.0,0.1013084]
[1734827301472,0.205771,97195.0,97182.0,0.1013084]
[1734827301673,0.00128622,97194.0,97182.0,0.1013084]
[1734827302075,0.205776,97193.0,97182.0,0.1013084]
[1734827302404,0.20578,97191.0,97182.0,0.1023084]
[1734827302616,0.00128622,97190.0,97182.0,0.1023084]
[1734827303637,0.00234062,97190.0,97182.0,0.1023084]
[1734827304168,0.00234062,97190.0,97182.0,0.1013084]
[1734827305021,0.00434062,97190.0,97182.0,0.1013084]
[1734827305502,0.0030544,97190.0,97187.0,0.205787]
[1734827305754,0.0040544,97190.0,97188.0,0.1013084]
[1734827305978,0.0050544,97190.0,97188.0,0.1013084]
[1734827306458,0.0040544,97190.0,97188.0,0.3070944]
[1734827307335,5.44e-05,97190.0,97188.0,0.3070944]
[1734827308257,5.44e-05,97190.0,97189.0,0.0818]
[1734827308464,5.44e-05,97190.0,97189.0,0.1831084]
[1734827310219,5.44e-05,97190.0,97189.0,0.1861084]
[1734827310688,5.44e-05,97190.0,97189.0,0.18713724]
[1734827311009,0.0010544,97190.0,97189.0,0.19313724]
[1734827311916,5.44e-05,97190.0,97189.0,0.18413724]
[1734827312145,0.0010544,97190.0,97189.0,0.19013724]
[1734827313137,0.0010544,97190.0,97189.0,0.19213724]
[1734827315092,0.0010544,97190.0,97189.0,0.11033724]
[1734827316192,5.44e-05,97190.0,97189.0,0.10233724]
[1734827316457,5.44e-05,97190.0,97189.0,0.18513724]
[1734827316660,0.0010544,97190.0,97189.0,0.3401084]
[1734827317081,0.0010544,97190.0,97189.0,0.93200692]
[1734827325824,0.0011401,97190.0,97189.0,0.93200692]
[1734827331259,0.0011401,97190.0,97189.0,0.88630692]
[1734827331865,0.0011401,97190.0,97189.0,0.80550692]
[1734827332698,0.0011401,97190.0,97189.0,0.65550692]
[1734827333745,0.0011401,97190.0,97189.0,0.1093084]
[1734827340822,0.0011401,97190.0,97189.0,0.11033723]
[1734827341455,0.0011401,97190.0,97189.0,0.1093084]
[1734827354626,0.0011401,97190.0,97189.0,0.18963722]
[1734827355801,0.0011401,97190.0,97189.0,0.23713722]
[1734827356002,0.0011401,97190.0,97189.0,0.2361084]
[1734827356733,0.0011401,97190.0,97189.0,0.3861084]
[1734827357891,0.0011401,97190.0,97189.0,0.93230692]
[1734827363136,0.0011401,97190.0,97189.0,0.95530692]
[1734827364459,0.0001401,97190.0,97189.0,0.94930692]
[1734827364673,0.0011401,97190.0,97189.0,0.95730692]
[1734827364966,0.0001401,97190.0,97189.0,1.08781906]
[1734827365123,0.0001401,97190.0,97189.0,1.08581906]
[1734827365322,0.0001401,97190.0,97189.0,1.09781906]
[1734827365323,0.0011401,97190.0,97189.0,1.09781906]
[1734827365736,0.0011401,97190.0,97189.0,0.95630692]
[1734827366122,8.57e-05,97221.0,97207.0,0.75194452]
[1734827366379,0.00062983,97208.0,97207.0,1.13005292]
[1734827366589,0.00062983,97208.0,97207.0,1.15305292]
[1734827367680,0.00062983,97208.0,97207.0,1.15405292]
[1734827367966,0.00062983,97208.0,97207.0,1.15305292]
[1734827368381,0.00062983,97208.0,97207.0,1.15805292]
[1734827368584,0.00062983,97208.0,97207.0,1.25805292]
[1734827368727,0.00062983,97208.0,97207.0,1.25705292]
[1734827369133,0.00062983,97208.0,97207.0,1.73741312]
[1734827369335,8.3e-07,97208.0,97207.0,1.74769174]
[1734827369537,8.3e-07,97208.0,97207.0,1.74669174]
[1734827369957,8.3e-07,97208.0,97207.0,1.75269174]
[1734827370163,8.3e-07,97208.0,97207.0,1.56800889]
[1734827370366,8.3e-07,97208.0,97207.0,1.56400889]
[1734827370768,8.653e-05,97208.0,97207.0,1.57300889]
[1734827371044,8.653e-05,97208.0,97207.0,1.74869174]
[1734827371246,8.653e-05,97208.0,97207.0,1.74269174]
[1734827371458,8.653e-05,97208.0,97207.0,1.75169174]
[1734827372155,8.653e-05,97208.0,97207.0,1.57300889]
[1734827373054,8.653e-05,97208.0,97207.0,1.59347982]
[1734827373244,5.3e-07,97208.0,97207.0,1.39880247]
[1734827373836,5.3e-07,97208.0,97207.0,1.29880247]
[1734827374880,5.3e-07,97208.0,97207.0,1.3906949]
[1734827375594,8.57e-05,97221.0,97220.0,0.205718]
[1734827375732,0.00024884,97221.0,97220.0,1.15552492]
[1734827377172,5.4e-07,97222.0,97221.0,0.1]
[1734827377386,0.0802988,97253.0,97221.0,0.1]
[1734827377387,0.0009988,97253.0,97247.0,0.205661]
[1734827377577,0.0009988,97253.0,97247.0,0.3069694]
[1734827377756,0.0793,97259.0,97247.0,0.3069694]
[1734827380967,0.0793,97259.0,97247.0,0.31919612]
[1734827381181,0.0793857,97248.0,97247.0,0.1093084]
[1734827381391,0.0793857,97248.0,97247.0,0.1013084]
[1734827381592,0.0793857,97248.0,97247.0,0.1063084]
[1734827381764,0.0793857,97248.0,97247.0,0.1083084]
[1734827381981,0.1278857,97248.0,97247.0,0.1033084]
[1734827382325,0.1278857,97248.0,97247.0,0.1013084]
[1734827384316,0.1278857,97248.0,97236.0,0.205683]
[1734827384446,0.00128546,97247.0,97237.0,0.1013084]
[1734827384643,0.0793,97246.0,97237.0,0.1013084]
[1734827384886,0.00128546,97245.0,97237.0,0.1013084]
[1734827386220,0.205668,97244.0,97237.0,0.1013084]
[1734827386370,0.0793,97242.0,97237.0,0.1013084]
[1734827386579,0.00128552,97241.0,97237.0,0.1013084]
[1734827388144,0.00228552,97241.0,97237.0,0.1013084]
[1734827388720,0.00428552,97241.0,97237.0,0.1013084]
[1734827389729,0.205676,97240.0,97237.0,0.1013084]
[1734827390011,0.0824,97233.0,97219.0,0.20572]
[1734827390246,0.4126727,97232.0,97220.0,0.1013084]
[1734827390454,0.205702,97228.0,97220.0,0.1013084]
[1734827390567,0.0012857,97227.0,97220.0,0.10147154]
[1734827390774,0.0012857,97230.0,97220.0,0.10147154]
[1734827391220,0.0824,97233.0,97221.0,0.205716]
[1734827391536,0.0824,97233.0,97223.0,0.205712]
[1734827391851,0.0824,97233.0,97224.0,0.1013084]
[1734827392003,0.002,97230.0,97224.0,0.1013084]
[1734827392208,0.0824,97233.0,97224.0,0.1013084]
[1734827392583,0.0844,97233.0,97224.0,0.1013084]
[1734827392785,0.0824,97233.0,97224.0,0.1013084]
[1734827393337,0.0834,97233.0,97224.0,0.1013084]
[1734827393547,0.0834,97233.0,97225.0,0.205708]
[1734827393724,0.0834,97233.0,97226.0,0.1013084]
[1734827394321,0.0824,97233.0,97226.0,0.1013084]
[1734827394691,0.00128561,97232.0,97226.0,0.1013084]
[1734827395115,0.20697961,97232.0,97226.0,0.1013084]
[1734827395316,0.00128561,97232.0,97226.0,0.1013084]
[1734827396132,0.00428561,97232.0,97226.0,0.1013084]
[1734827397181,0.00528561,97232.0,97226.0,0.1013084]
[1734827397619,0.004,97232.0,97226.0,0.1013084]
[1734827398477,0.001,97232.0,97226.0,0.1013084]
[1734827398676,0.002,97232.0,97226.0,0.1013084]
[1734827399022,0.001,97232.0,97226.0,0.1013084]
[1734827399645,0.00228562,97232.0,97226.0,0.1013084]
[1734827400253,0.205698,97230.0,97226.0,0.1013084]
[1734827400461,0.205702,97228.0,97226.0,0.1013084]
[1734827400679,0.0012857,97227.0,97226.0,0.1013084]
[1734827401045,0.0836857,97227.0,97226.0,0.1013084]
[1734827401742,0.0836857,97227.0,97220.0,0.00016314]
[1734827401949,0.0836857,97227.0,97221.0,0.1013084]
[1734827402152,0.20571,97224.0,97221.0,0.1013084]
[1734827402286,0.205714,97222.0,97221.0,0.1013084]
[1734827403113,0.205706,97226.0,97221.0,0.1013084]
[1734827403340,0.20571,97224.0,97221.0,0.1013084]
[1734827404267,0.20571,97224.0,97221.0,0.1023084]
[1734827404701,0.0824,97227.0,97221.0,0.1023084]
[1734827404899,0.205691,97234.0,97221.0,0.1023084]
[1734827404900,0.205693,97232.0,97221.0,0.1033084]
[1734827405236,0.00128572,97231.0,97221.0,0.1023084]
[1734827405444,0.00128572,97231.0,97221.0,0.1013084]
[1734827405646,8.57e-05,97233.0,97222.0,0.205713]
[1734827405968,8.57e-05,97233.0,97226.0,0.205705]
[1734827406167,8.57e-05,97233.0,97228.0,0.205702]
[1734827406370,8.57e-05,97233.0,97229.0,0.1013084]
[1734827406576,0.003,97232.0,97230.0,0.205697]
[1734827406775,0.003,97232.0,97231.0,0.1802084]
[1734827407003,0.003,97232.0,97231.0,0.72640692]
[1734827407816,8.57e-05,97233.0,97232.0,0.205693]
[1734827407998,8.57e-05,97233.0,97232.0,0.3070014]
[1734827408138,0.0020857,97233.0,97232.0,0.3070014]
[1734827408345,8.57e-05,97233.0,97232.0,0.3070014]
[1734827409404,8.57e-05,97233.0,97232.0,0.1033084]
[1734827409833,8.57e-05,97233.0,97232.0,0.002]
[1734827409978,0.0483857,97233.0,97232.0,0.002]
[1734827410346,0.0483857,97233.0,97232.0,0.003]
[1734827410915,0.0483857,97233.0,97232.0,0.001]
[1734827411312,0.2540787,97233.0,97220.0,0.20588014]
[1734827411558,0.00128571,97232.0,97222.0,0.1013084]
[1734827412847,0.00428571,97232.0,97222.0,0.1013084]
[1734827413051,0.205695,97231.0,97222.0,0.1013084]
[1734827413279,0.00128571,97230.0,97222.0,0.1013084]
[1734827414307,0.00128571,97229.0,97222.0,0.1013084]
[1734827414918,0.205702,97228.0,97222.0,0.1013084]
[1734827415118,0.003,97230.0,97222.0,0.1013084]
[1734827415271,0.205708,97225.0,97220.0,0.00016314]
[1734827415492,0.205712,97223.0,97221.0,0.1014798]
[1734827415684,0.00128575,97222.0,97221.0,0.1014798]
[1734827416292,0.00128575,97222.0,97221.0,0.0001714]
[1734827417618,0.00128575,97222.0,97221.0,0.0011714]
[1734827418150,0.00128575,97222.0,97221.0,0.0021714]
[1734827421274,8.57e-05,97227.0,97221.0,0.0021714]
[1734827421474,8.57e-05,97227.0,97222.0,0.5127364]
[1734827422284,8.57e-05,97227.0,97224.0,0.41142]
[1734827422483,8.57e-05,97227.0,97226.0,0.205706]
[1734827422688,8.57e-05,97227.0,97226.0,0.3070144]
[1734827424066,0.0010857,97227.0,97226.0,0.3070144]
[1734827424268,8.57e-05,97227.0,97226.0,0.3070144]
[1734827424676,0.0010857,97227.0,97226.0,0.3070144]
[1734827424874,8.57e-05,97227.0,97226.0,0.3070144]
[1734827425337,0.0010857,97227.0,97226.0,0.3070144]
[1734827425536,8.57e-05,97227.0,97226.0,0.3070144]
[1734827427357,8.57e-05,97227.0,97226.0,0.3130144]
[1734827427731,8.57e-05,97227.0,97226.0,0.3912144]
[1734827427893,8.57e-05,97227.0,97226.0,1.08741292]
[1734827431139,8.57e-05,97227.0,97226.0,1.07941292]
[1734827431339,8.57e-05,97227.0,97226.0,1.08141292]
[1734827431547,8.57e-05,97227.0,97226.0,1.08741292]
[1734827434114,8.57e-05,97227.0,97226.0,1.15961292]
[1734827434947,8.57e-05,97245.0,97226.0,1.15961292]
[1734827434948,8.57e-05,97245.0,97244.0,0.75186652]
[1734827435120,8.57e-05,97245.0,97244.0,1.13497492]
[1734827436778,8.57e-05,97245.0,97244.0,1.13997492]
[1734827437058,8.57e-05,97245.0,97244.0,1.14197492]
[1734827437488,8.57e-05,97245.0,97244.0,1.13997492]
[1734827437688,8.57e-05,97245.0,97244.0,1.14497492]
[1734827437912,8.57e-05,97245.0,97244.0,1.13997492]
[1734827438137,8.57e-05,97245.0,97244.0,1.15937844]
[1734827438314,8.57e-05,97245.0,97244.0,1.15437844]
[1734827439016,8.57e-05,97245.0,97244.0,1.15937844]
[1734827440038,8.57e-05,97245.0,97244.0,1.18237844]
[1734827442210,4e-07,97249.0,97248.0,0.1]
[1734827442464,0.0001,97269.0,97268.0,0.438217]
[1734827442670,0.0001,97269.0,97268.0,0.5395254]
[1734827443639,0.00026314,97269.0,97268.0,0.5455254]
[1734827444037,0.00034884,97269.0,97268.0,0.5455254]
[1734827445000,0.00034884,97269.0,97268.0,0.5475254]
[1734827445203,0.00034884,97269.0,97268.0,0.55769844]
[1734827445404,0.00034884,97269.0,97268.0,0.54969844]
[1734827445831,0.00034884,97269.0,97268.0,0.56269844]
[1734827447372,0.00034884,97269.0,97268.0,0.58569844]
[1734827447862,0.00034884,97269.0,97268.0,1.13189696]
[1734827448143,0.00034884,97269.0,97268.0,1.12789696]
[1734827448548,0.00034884,97269.0,97268.0,1.12389696]
[1734827448897,0.00034884,97269.0,97268.0,1.13289696]
[1734827450145,0.00034884,97269.0,97268.0,1.12389696]
[1734827450322,0.00034884,97269.0,97268.0,1.11889696]
[1734827450659,0.00034884,97269.0,97268.0,1.13389696]
[1734827458071,0.00034884,97269.0,97268.0,1.02829696]
[1734827458786,0.00034884,97269.0,97268.0,1.01929696]
[1734827459015,0.00034884,97269.0,97268.0,1.02829696]
[1734827459246,0.00034884,97269.0,97268.0,1.01929696]
[1734827459478,0.00034884,97269.0,97268.0,1.02229696]
[1734827459717,0.00034884,97269.0,97268.0,0.86329696]
[1734827459943,0.00034884,97269.0,97268.0,0.86729696]
[1734827460975,0.00034884,97269.0,97268.0,0.86329696]
[1734827461210,0.00034884,97269.0,97268.0,0.87229696]
[1734827461492,0.00034884,97269.0,97268.0,0.86529696]
[1734827461737,0.00034884,97269.0,97268.0,0.87129696]
[1734827462643,0.00034884,97269.0,97268.0,0.86329696]
[1734827462878,0.00034884,97269.0,97268.0,0.87129696]
[1734827463353,0.00034884,97269.0,97268.0,0.86929696]
[1734827463584,0.00034884,97269.0,97268.0,0.1073084]
[1734827463799,0.00034884,97269.0,97268.0,0.1093084]
[1734827464241,0.00034884,97269.0,97268.0,0.1013084]
[1734827464452,0.00034884,97269.0,97268.0,0.1033084]
[1734827464671,0.00034884,97269.0,97268.0,0.1043084]
[1734827465644,0.12374884,97269.0,97268.0,0.003]
[1734827465855,0.205628,97263.0,97253.0,0.15]
[1734827466085,0.205617,97268.0,97254.0,0.3069554]
[1734827466285,0.205621,97266.0,97254.0,0.3069554]
[1734827466494,0.0773,97256.0,97254.0,0.1013084]
[1734827466909,0.0785853,97256.0,97254.0,0.1013084]
[1734827467111,0.205644,97255.0,97254.0,0.1013084]
[1734827467528,0.251744,97255.0,97254.0,0.1013084]
[1734827467735,0.205655,97250.0,97249.0,0.0001714]
[1734827468142,0.282955,97250.0,97249.0,0.0001714]
[1734827469387,0.282955,97250.0,97249.0,0.0011714]
[1734827469800,0.282955,97250.0,97249.0,0.0001714]
[1734827470388,0.0773,97250.0,97249.0,0.1014798]
[1734827470947,0.0783,97250.0,97249.0,0.1014798]
[1734827471138,0.0773,97250.0,97249.0,0.0001714]
[1734827471335,0.07858549,97250.0,97249.0,0.0001714]
[1734827471559,0.07958549,97250.0,97249.0,0.0001714]
[1734827471765,0.07858549,97250.0,97249.0,0.0001714]
[1734827472209,0.0783,97250.0,97249.0,0.0001714]
[1734827472410,0.23928442,97250.0,97249.0,0.0001714]
[1734827472654,0.23799889,97250.0,97249.0,0.0001714]
[1734827473860,0.33799889,97250.0,97249.0,0.0001714]
[1734827476646,0.0776,97244.0,97213.0,0.205732]
[1734827476796,0.205704,97227.0,97223.0,0.1013084]
[1734827476961,0.205696,97231.0,97223.0,0.1013084]
[1734827477164,0.205699,97229.0,97223.0,0.1013084]
[1734827477373,0.00128568,97228.0,97223.0,0.1013084]
[1734827477628,0.0776,97226.0,97223.0,0.1013084]
[1734827477831,0.20699369,97225.0,97223.0,0.1013084]
[1734827477986,0.0776,97226.0,97223.0,0.1013084]
[1734827478591,0.00128569,97228.0,97223.0,0.1013084]
[1734827478802,0.001,97226.0,97223.0,0.1013084]
[1734827479432,0.205708,97225.0,97223.0,0.1013084]
[1734827480060,0.001,97226.0,97223.0,0.1013084]
[1734827480412,0.205708,97225.0,97223.0,0.1013084]
[1734827481576,0.00128569,97224.0,97223.0,0.1013084]
[1734827482114,0.205712,97223.0,97208.0,0.54619852]
[1734827483860,0.205712,97223.0,97207.0,0.01052694]
[1734827484355,0.205712,97223.0,97208.0,0.205742]
[1734827484812,0.205712,97223.0,97212.0,0.205734]
[1734827485020,0.283289,97234.0,97222.0,0.1024798]
[1734827485224,0.283289,97234.0,97223.0,0.1013084]
[1734827485225,0.205699,97230.0,97223.0,0.1013084]
[1734827485432,0.20571,97224.0,97223.0,0.1013084]
[1734827486018,0.205706,97226.0,97223.0,0.1013084]
[1734827486218,0.00128571,97225.0,97223.0,0.1013084]
[1734827488521,0.0012857,97231.0,97223.0,0.1013084]
[1734827488735,0.0012857,97230.0,97223.0,0.1013084]
[1734827488959,0.205699,97229.0,97223.0,0.1013084]
[1734827489158,0.0012857,97228.0,97223.0,0.1013084]
[1734827489365,0.205704,97227.0,97223.0,0.1013084]
[1734827489573,0.0012857,97226.0,97223.0,0.1013084]
[1734827489777,0.411416,97225.0,97222.0,0.0001714]
[1734827489979,0.00128581,97224.0,97222.0,0.0001714]
[1734827490417,0.334712,97223.0,97222.0,0.0001714]
[1734827492443,0.336712,97223.0,97222.0,0.0001714]
[1734827492637,0.343712,97223.0,97222.0,0.0011714]
[1734827497117,0.443712,97223.0,97222.0,0.0011714]
[1734827497318,0.543712,97223.0,97222.0,0.0011714]
[1734827497527,0.693712,97223.0,97222.0,0.0011714]
[1734827499956,0.205744,97208.0,97188.0,0.5462]
[1734827500207,0.434744,97208.0,97207.0,0.00033454]
[1734827501165,0.334744,97208.0,97207.0,0.00033454]
[1734827501366,0.205744,97208.0,97207.0,0.00033454]
[1734827501742,0.207744,97208.0,97207.0,0.00033454]
[1734827502145,0.009,97208.0,97207.0,0.10264294]
[1734827502433,0.009,97208.0,97207.0,0.10164294]
[1734827502769,0.018,97208.0,97207.0,0.10264294]
[1734827502969,0.022,97208.0,97207.0,0.10264294]
[1734827503629,0.004,97208.0,97207.0,0.10164294]
[1734827503817,0.004,97208.0,97207.0,0.10264294]
[1734827503818,0.009,97208.0,97207.0,0.10264294]
[1734827504285,0.005,97208.0,97207.0,0.10264294]
[1734827504785,0.007,97208.0,97207.0,0.10264294]
[1734827506035,0.007,97208.0,97207.0,0.18074294]
[1734827507227,0.005,97208.0,97207.0,0.18074294]
[1734827507642,0.007,97208.0,97207.0,0.18074294]
[1734827508038,0.005,97208.0,97207.0,0.18074294]
[1734827508651,0.00227011,97227.0,97207.0,0.18074294]
[1734827508652,0.00227011,97227.0,97209.0,0.048]